bitfinex-derivatives/quotes_BTCF0:USTF0_20220103
["timestamp","ask_amount","ask_price","bid_price","bid_amount"]
[1641204157623,0.18,47117.0,47116.0,0.14033567]
[1641204158623,0.18,47117.0,47111.0,0.14033567]
[1641204158624,0.04340926,47113.0,47111.0,0.14033567]
[1641204159023,0.18,47116.0,47111.0,0.14033567]
[1641204159225,0.144,47113.0,47111.0,0.14033567]
[1641204159625,0.144,47113.0,47112.0,0.001]
[1641204160524,0.18,47116.0,47112.0,0.001]
[1641204160727,0.18,47116.0,47111.0,0.14033567]
[1641204161324,0.331,47116.0,47111.0,0.14033567]
[1641204162638,0.18,47116.0,47111.0,0.14033567]
[1641204163241,0.329,47116.0,47111.0,0.14033567]
[1641204163638,0.149,47116.0,47111.0,0.14033567]
[1641204163838,0.329,47116.0,47111.0,0.14033567]
[1641204164237,0.48144405,47116.0,47111.0,0.14033567]
[1641204164641,0.33244405,47116.0,47111.0,0.14033567]
[1641204165338,0.30444405,47116.0,47111.0,0.14033567]
[1641204165539,0.48444405,47116.0,47111.0,0.14033567]
[1641204165743,0.15996342,47113.0,47111.0,0.14033567]
[1641204166542,0.04434939,47111.0,47107.0,0.14033567]
[1641204166745,0.15996342,47113.0,47107.0,0.14033567]
[1641204166942,0.32033567,47116.0,47107.0,0.14033567]
[1641204167342,0.32033567,47116.0,47107.0,0.0733]
[1641204167343,0.147,47113.0,47107.0,0.0733]
[1641204168444,0.147,47113.0,47101.0,0.16156819]
[1641204169044,0.14033567,47110.0,47101.0,0.16156819]
[1641204169245,0.14033567,47110.0,47108.0,0.57697035]
[1641204169645,0.14033567,47110.0,47109.0,0.001]
[1641204171251,0.27933567,47110.0,47109.0,0.001]
[1641204171448,0.27933567,47110.0,47107.0,0.57697035]
[1641204171850,0.27933567,47110.0,47109.0,0.001]
[1641204173149,0.14033567,47110.0,47109.0,0.001]
[1641204173349,0.27833567,47110.0,47109.0,0.001]
[1641204173850,0.27833567,47110.0,47109.0,0.9652355]
[1641204174649,0.14033567,47110.0,47109.0,0.9652355]
[1641204175248,0.27833567,47110.0,47109.0,0.9652355]
[1641204176650,0.14033567,47110.0,47109.0,0.9652355]
[1641204177050,0.14033567,47110.0,47109.0,1.77299399]
[1641204177452,0.27833567,47110.0,47109.0,1.77299399]
[1641204178651,0.27833567,47110.0,47109.0,0.9652355]
[1641204178854,0.14033567,47110.0,47109.0,0.9652355]
[1641204179452,0.26333567,47110.0,47109.0,0.001]
[1641204180754,0.14033567,47110.0,47109.0,0.001]
[1641204181457,0.27733567,47110.0,47109.0,0.001]
[1641204182857,0.14033567,47110.0,47109.0,0.001]
[1641204183456,0.27733567,47110.0,47109.0,0.001]
[1641204184560,0.27733567,47110.0,47109.0,0.08537219]
[1641204184759,0.14033567,47110.0,47109.0,0.08537219]
[1641204185362,0.14033567,47110.0,47109.0,0.10660046]
[1641204185561,0.14033567,47116.0,47109.0,0.10660046]
[1641204185762,0.20122668,47132.0,47115.0,0.18]
[1641204185964,0.37340442,47129.0,47114.0,0.009794]
[1641204186262,0.37340442,47129.0,47117.0,0.02122505]
[1641204186462,0.37340442,47129.0,47115.0,0.02122638]
[1641204186665,0.37340442,47129.0,47118.0,0.18]
[1641204186862,0.37340442,47129.0,47118.0,0.02122486]
[1641204187062,0.14033567,47123.0,47118.0,0.02122486]
[1641204187463,0.14033567,47123.0,47118.0,0.136]
[1641204189063,0.14033567,47119.0,47118.0,0.136]
[1641204189464,0.14033567,47119.0,47118.0,0.271]
[1641204190864,0.14033567,47119.0,47111.0,0.009794]
[1641204191063,0.14033567,47113.0,47111.0,0.03102184]
[1641204191263,0.14033567,47113.0,47112.0,0.001]
[1641204192066,0.14033567,47113.0,47112.0,0.0222276]
[1641204192965,0.14033567,47113.0,47112.0,0.0212276]
[1641204193567,0.14033567,47113.0,47112.0,0.1632276]
[1641204194267,0.14033567,47113.0,47112.0,0.1642276]
[1641204194869,0.14033567,47113.0,47112.0,0.0222276]
[1641204195067,0.14033567,47113.0,47111.0,0.009794]
[1641204195470,0.14033567,47113.0,47112.0,0.142]
[1641204196070,0.14033567,47113.0,47112.0,0.143]
[1641204196769,0.14033567,47113.0,47112.0,0.001]
[1641204197569,0.14033567,47113.0,47112.0,0.144]
[1641204197971,0.14033567,47113.0,47112.0,0.143]
[1641204198869,0.14033567,47113.0,47108.0,0.18]
[1641204199070,0.14033567,47119.0,47111.0,0.18]
[1641204199271,0.14033567,47119.0,47113.0,0.02122725]
[1641204199571,0.14033567,47119.0,47113.0,0.09396725]
[1641204199971,0.14033567,47119.0,47118.0,0.001]
[1641204200271,0.14033567,47119.0,47118.0,0.57354963]
[1641204200971,0.14033567,47119.0,47117.0,0.80574544]
[1641204201473,0.14033567,47119.0,47117.0,0.94274544]
[1641204201971,0.14033567,47119.0,47118.0,0.96408876]
[1641204202174,0.14033567,47119.0,47118.0,1.53759915]
[1641204202571,0.14033567,47119.0,47118.0,0.57351039]
[1641204202774,0.14033567,47119.0,47118.0,0.34419408]
[1641204203187,0.14033567,47119.0,47117.0,0.57351039]
[1641204203571,0.14033567,47119.0,47118.0,0.136]
[1641204204573,0.14033567,47119.0,47118.0,0.70951039]
[1641204204875,0.14033567,47119.0,47118.0,1.67352973]
[1641204205374,0.14033567,47119.0,47118.0,1.67252973]
[1641204206780,0.14033567,47119.0,47118.0,1.53752973]
[1641204207384,0.14033567,47119.0,47118.0,1.67252973]
[1641204207580,0.14033567,47119.0,47118.0,0.135]
[1641204208679,0.14033567,47119.0,47115.0,0.06496]
[1641204208879,0.14033567,47119.0,47112.0,0.33012967]
[1641204209484,0.14033567,47119.0,47113.0,0.15622697]
[1641204210792,0.14033567,47119.0,47113.0,0.02122697]
[1641204210992,0.14033567,47119.0,47115.0,0.18]
[1641204211192,0.14033567,47119.0,47115.0,0.27228]
[1641204211393,0.14033567,47119.0,47115.0,0.40728]
[1641204211794,0.14033567,47119.0,47115.0,0.22728]
[1641204212894,0.14033567,47119.0,47113.0,0.02122697]
[1641204213394,0.14033567,47119.0,47113.0,0.15622697]
[1641204214597,0.14033567,47119.0,47113.0,0.33622697]
[1641204214795,0.14033567,47119.0,47113.0,0.20122697]
[1641204215497,0.14033567,47119.0,47113.0,0.33722697]
[1641204216098,0.14033567,47119.0,47113.0,0.15722697]
[1641204216298,0.14033567,47119.0,47113.0,0.33722697]
[1641204216702,0.14033567,47119.0,47113.0,0.20122697]
[1641204217101,0.14033567,47119.0,47113.0,0.02122697]
[1641204217500,0.14033567,47119.0,47113.0,0.15622697]
[1641204218100,0.42448438,47116.0,47113.0,0.15622697]
[1641204218602,0.42448438,47116.0,47113.0,0.135]
[1641204218801,0.42448438,47116.0,47112.0,0.14033567]
[1641204219401,0.42448438,47116.0,47112.0,0.27133567]
[1641204220802,0.42448438,47116.0,47112.0,0.14033567]
[1641204221404,0.42448438,47116.0,47112.0,0.27133567]
[1641204222807,0.42448438,47116.0,47112.0,0.14033567]
[1641204223408,0.42448438,47116.0,47112.0,0.27133567]
[1641204223609,0.42448438,47116.0,47114.0,0.57351039]
[1641204225511,0.42448438,47116.0,47114.0,0.70451039]
[1641204226109,0.42448438,47116.0,47115.0,0.57351039]
[1641204227511,0.42448438,47116.0,47115.0,0.13]
[1641204228212,0.42448438,47116.0,47115.0,0.47494096]
[1641204228812,0.42448438,47116.0,47115.0,0.34494096]
[1641204229210,0.42448438,47116.0,47112.0,0.80574544]
[1641204229211,0.50939921,47115.0,47112.0,0.80574544]
[1641204229411,0.46067134,47113.0,47106.0,2.47771816]
[1641204229610,0.18,47107.0,47106.0,2.47771816]
[1641204229810,0.30190635,47113.0,47105.0,1.15126152]
[1641204230011,0.18,47110.0,47105.0,1.15126152]
[1641204231109,0.18,47110.0,47101.0,1.27259216]
[1641204231311,0.18,47110.0,47096.0,1.27259216]
[1641204231515,0.304,47110.0,47105.0,0.105]
[1641204231711,0.14033567,47106.0,47105.0,0.105]
[1641204231911,0.32033567,47106.0,47105.0,0.105]
[1641204232614,0.14033567,47106.0,47105.0,0.105]
[1641204232811,0.14033567,47106.0,47095.0,0.02123501]
[1641204233014,0.18,47105.0,47095.0,0.02123501]
[1641204233212,0.14033567,47106.0,47095.0,0.02123501]
[1641204233414,0.14033567,47106.0,47095.0,0.15023501]
[1641204233612,0.14033567,47100.0,47095.0,0.15023501]
[1641204235515,0.14033567,47100.0,47095.0,0.15323501]
[1641204236715,0.14033567,47100.0,47095.0,0.02123501]
[1641204237416,0.14033567,47100.0,47095.0,0.15323501]
[1641204238915,0.14033567,47100.0,47095.0,0.02123501]
[1641204239516,0.14033567,47100.0,47095.0,0.15323501]
[1641204240719,0.14033567,47100.0,47095.0,0.09128501]
[1641204241520,0.14033567,47100.0,47095.0,0.22328501]
[1641204242821,0.14033567,47100.0,47095.0,0.09128501]
[1641204243422,0.14033567,47100.0,47095.0,0.22328501]
[1641204244825,0.14033567,47100.0,47095.0,0.09128501]
[1641204245426,0.14033567,47100.0,47095.0,0.22228501]
[1641204246328,0.14033567,47100.0,47095.0,0.20105]
[1641204246726,0.14033567,47100.0,47095.0,0.07005]
[1641204246925,0.18,47096.0,47094.0,0.34513135]
[1641204247126,0.16157667,47100.0,47092.0,0.34513135]
[1641204247427,0.20197087,47098.0,47092.0,0.34513135]
[1641204247625,0.107,47096.0,47094.0,0.125]
[1641204247826,0.14033567,47095.0,47094.0,0.125]
[1641204248929,0.14033567,47095.0,47087.0,0.02123886]
[1641204249528,0.18,47092.0,47087.0,0.128]
[1641204249727,0.14033567,47095.0,47087.0,0.128]
[1641204250729,0.14033567,47095.0,47086.0,0.36637063]
[1641204251029,0.14033567,47095.0,47087.0,1.118]
[1641204251230,0.14033567,47106.0,47094.0,0.02123529]
[1641204251432,0.20940224,47111.0,47098.0,1.118]
[1641204251631,0.20940224,47111.0,47094.0,1.21570529]
[1641204251830,0.20940224,47111.0,47095.0,0.009794]
[1641204252031,0.20940224,47111.0,47104.0,0.14033567]
[1641204252232,0.20940224,47111.0,47104.0,0.22487567]
[1641204252633,0.02123529,47113.0,47104.0,0.22487567]
[1641204252835,0.02123529,47113.0,47106.0,0.34513135]
[1641204253434,0.02123529,47113.0,47106.0,0.47413135]
[1641204253639,0.18,47112.0,47108.0,0.34513135]
[1641204254638,0.18,47112.0,47106.0,0.129]
[1641204254837,0.02123529,47113.0,47105.0,0.34513135]
[1641204255537,0.13323529,47113.0,47105.0,0.47213135]
[1641204255738,0.2739172,47111.0,47105.0,0.47213135]
[1641204256837,0.2739172,47111.0,47105.0,0.34513135]
[1641204257537,0.2739172,47111.0,47105.0,0.47313135]
[1641204257737,0.2739172,47111.0,47106.0,0.34513135]
[1641204259558,0.2739172,47111.0,47106.0,0.47313135]
[1641204260156,0.2739172,47111.0,47107.0,0.34513135]
[1641204260857,0.2739172,47111.0,47106.0,0.34513135]
[1641204261558,0.2739172,47111.0,47106.0,0.47413135]
[1641204263060,0.2739172,47111.0,47106.0,0.34513135]
[1641204263561,0.2739172,47111.0,47106.0,0.47413135]
[1641204264361,0.2739172,47111.0,47107.0,0.34513135]
[1641204265664,0.2739172,47111.0,47107.0,0.47413135]
[1641204266364,0.2739172,47111.0,47107.0,0.129]
[1641204266764,0.2739172,47111.0,47107.0,0.47413135]
[1641204266964,0.2739172,47111.0,47107.0,0.34513135]
[1641204267566,0.2739172,47111.0,47107.0,0.47413135]
[1641204268465,0.1199653,47110.0,47107.0,0.47413135]
[1641204268866,0.1199653,47110.0,47107.0,0.34513135]
[1641204269469,0.18,47108.0,47107.0,0.23740061]
[1641204269671,0.18,47108.0,47107.0,0.35440061]
[1641204270071,0.32033567,47108.0,47107.0,0.00010061]
[1641204270872,0.32033567,47108.0,47104.0,0.57528489]
[1641204271272,0.14033567,47108.0,47101.0,0.57528489]
[1641204271672,0.26933567,47108.0,47101.0,0.57528489]
[1641204271872,0.44933567,47108.0,47101.0,0.57528489]
[1641204272072,0.44933567,47108.0,47100.0,0.81545716]
[1641204272073,0.40967134,47108.0,47100.0,0.58507889]
[1641204272874,0.28067134,47108.0,47100.0,0.58507889]
[1641204273474,0.28067134,47108.0,47101.0,1.53979209]
[1641204273675,0.41367134,47108.0,47101.0,1.53979209]
[1641204274975,0.28067134,47108.0,47101.0,1.53979209]
[1641204275175,0.09073672,47103.0,47101.0,1.53979209]
[1641204276178,0.41367134,47108.0,47101.0,1.53979209]
[1641204276377,0.1077277,47107.0,47101.0,1.53979209]
[1641204277278,0.02124143,47102.0,47100.0,0.68878527]
[1641204277477,0.02124143,47102.0,47091.0,1.37124163]
[1641204277678,0.18,47100.0,47091.0,1.37124163]
[1641204278082,0.14033567,47095.0,47091.0,1.37124163]
[1641204279281,0.14033567,47095.0,47086.0,0.009794]
[1641204279682,0.24433567,47095.0,47086.0,0.009794]
[1641204281085,0.14033567,47095.0,47086.0,0.009794]
[1641204281686,0.25333567,47095.0,47086.0,0.009794]
[1641204283087,0.31589997,47094.0,47086.0,0.009794]
[1641204283290,0.31589997,47094.0,47091.0,0.001]
[1641204283490,0.31589997,47094.0,47093.0,0.001]
[1641204283688,0.43389997,47094.0,47093.0,0.001]
[1641204284289,0.31490572,47090.0,47089.0,0.34789888]
[1641204284490,0.118,47094.0,47089.0,0.34889888]
[1641204284689,0.118,47094.0,47089.0,0.34789888]
[1641204285089,0.14033567,47095.0,47089.0,0.34789888]
[1641204285590,0.25533567,47095.0,47089.0,0.34789888]
[1641204285792,0.08124683,47090.0,47089.0,9.888e-05]
[1641204285990,0.08124683,47090.0,47086.0,0.82411076]
[1641204285991,0.02124683,47090.0,47087.0,9.888e-05]
[1641204286193,0.18,47088.0,47087.0,9.888e-05]
[1641204286590,3.09899279,47089.0,47087.0,9.888e-05]
[1641204286791,0.18,47088.0,47087.0,9.888e-05]
[1641204287393,0.18,47088.0,47084.0,0.34666971]
[1641204287694,0.18,47085.0,47079.0,0.5825827]
[1641204287892,0.18,47082.0,47079.0,0.5825827]
[1641204288295,0.32033567,47082.0,47079.0,0.5825827]
[1641204288694,0.32033567,47082.0,47078.0,0.0314]
[1641204289594,0.44733567,47082.0,47078.0,0.0314]
[1641204290896,0.32033567,47082.0,47078.0,0.0314]
[1641204291695,0.44733567,47082.0,47078.0,0.0314]
[1641204292997,0.18,47079.0,47075.0,0.5825827]
[1641204293213,0.18,47076.0,47064.0,1.37124163]
[1641204293414,0.18,47069.0,47064.0,1.37124163]
[1641204293610,0.26101,47069.0,47064.0,1.37124163]
[1641204293808,0.26101,47069.0,47068.0,1.19583496]
[1641204294007,0.26101,47069.0,47064.0,1.37124163]
[1641204294207,0.46067134,47065.0,47052.0,1.37124163]
[1641204294409,0.46067134,47065.0,47063.0,0.9650785]
[1641204295009,0.02125739,47064.0,47056.0,1.28471433]
[1641204295213,0.60332071,47064.0,47056.0,1.28471433]
[1641204295412,0.53120932,47064.0,47052.0,1.37124163]
[1641204295611,0.18,47062.0,47051.0,0.009794]
[1641204296212,0.14033567,47059.0,47051.0,0.009794]
[1641204296413,0.18,47057.0,47049.0,1.20646445]
[1641204296613,0.07609,47059.0,47054.0,0.18]
[1641204296816,0.13,47064.0,47054.0,1.38424]
[1641204297012,0.28067134,47065.0,47058.0,0.02125186]
[1641204297213,0.28067134,47065.0,47054.0,0.08624]
[1641204297412,0.28067134,47065.0,47057.0,0.02125231]
[1641204297613,0.41367134,47065.0,47055.0,0.35121037]
[1641204298313,0.41367134,47065.0,47055.0,0.49154604]
[1641204298714,0.41367134,47065.0,47058.0,0.35121037]
[1641204298914,0.28067134,47065.0,47058.0,0.35121037]
[1641204299717,0.41167134,47065.0,47058.0,0.35121037]
[1641204300916,0.41167134,47065.0,47055.0,0.49154604]
[1641204301121,0.28067134,47065.0,47055.0,0.49154604]
[1641204301320,0.28067134,47065.0,47063.0,0.35121037]
[1641204301716,0.40767134,47065.0,47063.0,0.35121037]
[1641204302915,0.28067134,47065.0,47063.0,0.35121037]
[1641204303116,0.28067134,47065.0,47063.0,0.58420286]
[1641204303618,0.40767134,47065.0,47063.0,0.58420286]
[1641204305117,0.40767134,47065.0,47062.0,0.35054833]
[1641204307017,0.28067134,47065.0,47062.0,0.35054833]
[1641204307717,0.40567134,47065.0,47062.0,0.35054833]
[1641204308921,0.46371134,47065.0,47062.0,0.35054833]
[1641204309116,0.33871134,47065.0,47062.0,0.35054833]
[1641204309718,0.46271134,47065.0,47062.0,0.35054833]
[1641204310216,0.20291776,47063.0,47062.0,0.35054833]
[1641204311618,0.32791776,47063.0,47062.0,0.35054833]
[1641204313019,0.20291776,47063.0,47062.0,0.35054833]
[1641204313720,0.32791776,47063.0,47062.0,0.35054833]
[1641204315121,0.20291776,47063.0,47062.0,0.35054833]
[1641204315425,0.20291776,47063.0,47062.0,0.53054833]
[1641204315627,1.77679448,47073.0,47062.0,0.56159172]
[1641204315825,1.77679448,47073.0,47071.0,0.06]
[1641204316027,1.77679448,47073.0,47062.0,0.45670172]
[1641204316227,1.56563952,47073.0,47062.0,0.45670172]
[1641204316429,2.07548295,47074.0,47062.0,0.45670172]
[1641204316629,2.07548295,47074.0,47068.0,0.14033567]
[1641204317432,2.07548295,47074.0,47069.0,0.35054833]
[1641204317631,1.3270459,47070.0,47069.0,0.35054833]
[1641204318132,1.3270459,47070.0,47069.0,0.08418825]
[1641204318432,1.4005959,47070.0,47069.0,0.08418825]
[1641204318634,0.21388567,47070.0,47068.0,0.127]
[1641204319036,0.21388567,47070.0,47065.0,0.58420286]
[1641204319434,0.02125473,47069.0,47065.0,0.58420286]
[1641204319633,0.02125473,47069.0,47065.0,0.124]
[1641204321137,0.02125473,47069.0,47062.0,0.59399686]
[1641204321339,1.44783803,47067.0,47062.0,0.59399686]
[1641204321641,1.44783803,47067.0,47062.0,0.72699686]
[1641204321840,0.02125473,47069.0,47063.0,1.5494112]
[1641204321841,1.32716147,47065.0,47063.0,1.5494112]
[1641204322739,1.32716147,47065.0,47063.0,0.58420286]
[1641204322940,1.32716147,47064.0,47062.0,0.72699686]
[1641204323139,1.32716147,47064.0,47062.0,0.59399686]
[1641204323840,1.32716147,47064.0,47062.0,0.72799686]
[1641204324643,1.32716147,47064.0,47063.0,0.96520549]
[1641204324944,1.32716147,47065.0,47063.0,1.55040835]
[1641204325143,1.32716147,47065.0,47064.0,0.001]
[1641204325343,1.32716147,47065.0,47064.0,0.18]
[1641204325545,1.32716147,47067.0,47063.0,0.96520549]
[1641204325745,1.32716147,47067.0,47064.0,0.135]
[1641204326549,0.38123491,47070.0,47064.0,0.135]
[1641204327160,0.38123491,47070.0,47065.0,1.78109097]
[1641204327361,1.32716147,47069.0,47066.0,0.58277392]
[1641204329266,1.44783803,47072.0,47068.0,0.53108209]
[1641204329464,1.44783803,47072.0,47071.0,0.18]
[1641204329762,1.44783803,47072.0,47068.0,0.42822209]
[1641204329963,0.34178814,47075.0,47071.0,0.76277392]
[1641204330362,1.44783803,47077.0,47071.0,0.76277392]
[1641204330762,1.44783803,47077.0,47071.0,0.90310959]
[1641204331163,1.44783803,47077.0,47073.0,0.35063586]
[1641204331767,1.44783803,47077.0,47073.0,0.48463586]
[1641204332064,1.46908877,47078.0,47073.0,0.48463586]
[1641204333065,1.46908877,47078.0,47074.0,0.35063586]
[1641204333665,1.46908877,47078.0,47074.0,0.48363586]
[1641204334369,1.44783803,47077.0,47074.0,0.133]
[1641204335167,1.44783803,47077.0,47073.0,0.35063586]
[1641204335666,1.51583803,47077.0,47073.0,0.48263586]
[1641204337270,1.44783803,47077.0,47073.0,0.35063586]
[1641204337669,1.44783803,47077.0,47073.0,0.48463586]
[1641204338972,1.44783803,47077.0,47073.0,0.35063586]
[1641204339376,0.33937299,47075.0,47073.0,0.35063586]
[1641204339872,0.33937299,47075.0,47073.0,0.48363586]
[1641204340976,0.33937299,47075.0,47073.0,0.35063586]
[1641204341475,0.33937299,47075.0,47074.0,0.35063586]
[1641204342577,0.33937299,47075.0,47073.0,0.134]
[1641204343077,0.33937299,47075.0,47071.0,0.67097153]
[1641204343878,0.33937299,47075.0,47071.0,0.80497153]
[1641204344583,0.02125074,47078.0,47071.0,0.45433567]
[1641204344784,0.1791864,47076.0,47071.0,0.45433567]
[1641204345682,0.1791864,47076.0,47071.0,0.32033567]
[1641204345882,0.1791864,47076.0,47071.0,0.45333567]
[1641204347183,0.1791864,47076.0,47071.0,0.32033567]
[1641204347886,0.1791864,47076.0,47071.0,0.45333567]
[1641204349088,0.1791864,47076.0,47071.0,0.32033567]
[1641204349790,0.1791864,47076.0,47071.0,0.45333567]
[1641204350996,0.1791864,47076.0,47071.0,0.62397153]
[1641204351694,1.32698839,47072.0,47071.0,0.49097153]
[1641204351893,1.32698839,47072.0,47071.0,0.62497153]
[1641204352896,1.32698839,47074.0,47071.0,0.27433567]
[1641204353093,1.32698839,47074.0,47071.0,0.14033567]
[1641204353797,1.32698839,47074.0,47071.0,0.28433567]
[1641204354397,1.32698839,47074.0,47071.0,0.46433567]
[1641204354997,1.32698839,47074.0,47071.0,0.28433567]
[1641204355200,1.32698839,47075.0,47071.0,0.14033567]
[1641204355799,1.32698839,47075.0,47071.0,0.28433567]
[1641204356798,1.32698839,47074.0,47071.0,0.28433567]
[1641204356997,1.32698839,47074.0,47071.0,0.14033567]
[1641204357796,1.32698839,47074.0,47071.0,0.28433567]
[1641204358400,1.32698839,47075.0,47071.0,0.28433567]
[1641204359097,1.32698839,47075.0,47071.0,0.14033567]
[1641204359797,1.32698839,47075.0,47071.0,0.28533567]
[1641204359998,1.20571581,47072.0,47071.0,0.28533567]
[1641204360297,1.32698839,47075.0,47071.0,0.145]
[1641204361118,1.32698839,47075.0,47069.0,0.35063586]
[1641204361714,1.2057497,47071.0,47069.0,0.35063586]
[1641204361915,1.2057497,47071.0,47069.0,0.49463586]
[1641204363116,1.2057497,47071.0,47069.0,0.35063586]
[1641204363817,1.2057497,47071.0,47069.0,0.49563586]
[1641204365218,1.2057497,47071.0,47069.0,0.35063586]
[1641204365626,0.42488886,47072.0,47068.0,0.14033567]
[1641204365627,1.2057497,47070.0,47068.0,0.14033567]
[1641204365819,1.2057497,47070.0,47069.0,0.144]
[1641204366421,1.75187725,47072.0,47069.0,0.144]
[1641204367221,1.75187725,47072.0,47068.0,0.14033567]
[1641204367422,0.42488886,47072.0,47068.0,0.14033567]
[1641204367822,0.42488886,47072.0,47068.0,0.28433567]
[1641204369322,0.42488886,47072.0,47068.0,0.14033567]
[1641204369822,0.42488886,47072.0,47068.0,0.28433567]
[1641204370122,1.75187725,47072.0,47068.0,0.28433567]
[1641204371124,1.75187725,47072.0,47069.0,0.35063586]
[1641204371327,0.42488886,47072.0,47069.0,0.35063586]
[1641204371824,0.42488886,47072.0,47069.0,0.49363586]
[1641204373228,0.42488886,47072.0,47069.0,0.35063586]
[1641204373427,0.42488886,47072.0,47070.0,0.35063586]
[1641204373629,0.07426514,47070.0,47068.0,0.72310959]
[1641204373827,0.07426514,47070.0,47069.0,0.143]
[1641204374027,1.44687204,47074.0,47069.0,0.143]
[1641204375228,1.44687204,47074.0,47068.0,0.58277392]
[1641204375829,1.44687204,47074.0,47068.0,0.72577392]
[1641204376430,1.44687204,47073.0,47068.0,0.72577392]
[1641204377229,1.44687204,47073.0,47068.0,0.58277392]
[1641204377738,0.50986415,47072.0,47068.0,0.58277392]
[1641204377937,0.50986415,47072.0,47068.0,0.72077392]
[1641204378235,1.95673619,47072.0,47068.0,0.138]
[1641204378636,0.18,47071.0,47068.0,0.138]
[1641204379038,1.62687204,47071.0,47068.0,0.138]
[1641204379234,1.62687204,47071.0,47066.0,0.58277392]
[1641204379434,0.14033567,47069.0,47066.0,0.58277392]
[1641204379934,1.58720771,47069.0,47066.0,0.133]
[1641204381637,1.44687204,47068.0,47066.0,0.133]
[1641204381836,1.44687204,47068.0,47066.0,0.136]
[1641204382234,1.72120771,47069.0,47066.0,0.136]
[1641204383234,1.58720771,47069.0,47063.0,0.58277392]
[1641204383534,1.44687204,47068.0,47063.0,0.58277392]
[1641204383932,1.44687204,47068.0,47063.0,0.73277392]
[1641204384337,1.44687204,47068.0,47064.0,0.35205087]
[1641204384835,1.44687204,47068.0,47065.0,0.35205087]
[1641204386035,1.44687204,47068.0,47065.0,0.50305087]
[1641204386036,0.113,47068.0,47065.0,0.50305087]
[1641204387137,1.32712351,47066.0,47065.0,0.50305087]
[1641204387337,1.32712351,47066.0,47065.0,0.35205087]
[1641204387838,1.32712351,47066.0,47065.0,0.50405087]
[1641204388439,1.32712351,47066.0,47065.0,0.152]
[1641204388641,1.32712351,47067.0,47065.0,0.73477392]
[1641204389140,1.32712351,47067.0,47065.0,1.54792557]
[1641204389942,1.32712351,47067.0,47065.0,0.73877392]
[1641204390844,1.32712351,47068.0,47066.0,1.54792557]
[1641204391645,1.32712351,47068.0,47067.0,0.35179215]
[1641204392347,0.14033567,47069.0,47066.0,0.156]
[1641204393045,1.2056746,47067.0,47066.0,0.156]
[1641204393445,1.2056746,47067.0,47063.0,0.35179215]
[1641204393945,1.2056746,47067.0,47066.0,0.155]
[1641204395146,1.2056746,47067.0,47063.0,0.35179215]
[1641204395949,1.2056746,47067.0,47063.0,0.50879215]
[1641204396451,1.2056746,47068.0,47064.0,0.35179215]
[1641204396650,1.2056746,47068.0,47064.0,0.41637215]
[1641204397051,1.2056746,47068.0,47064.0,0.06458]
[1641204397250,1.46745918,47069.0,47067.0,0.58277392]
[1641204397849,1.46745918,47069.0,47067.0,0.73877392]
[1641204398049,1.46745918,47069.0,47068.0,0.35160488]
[1641204398449,1.46745918,47069.0,47067.0,0.73877392]
[1641204399149,1.46745918,47069.0,47067.0,0.58277392]
[1641204399852,1.46745918,47069.0,47067.0,0.73677392]
[1641204400152,1.46745918,47069.0,47068.0,0.35165103]
[1641204401965,1.46745918,47069.0,47068.0,0.50465103]
[1641204402151,0.14033567,47069.0,47068.0,0.50465103]
[1641204403152,0.14033567,47069.0,47068.0,0.35165103]
[1641204403954,0.14033567,47069.0,47068.0,0.50765103]
[1641204404956,1.46738808,47069.0,47068.0,0.50765103]
[1641204405153,1.46738808,47069.0,47068.0,0.35165103]
[1641204406055,1.46738808,47069.0,47068.0,0.50365103]
[1641204406255,1.46738808,47069.0,47068.0,0.152]
[1641204407356,1.46738808,47069.0,47067.0,0.58277392]
[1641204408057,1.46738808,47069.0,47067.0,0.73577392]
[1641204408957,1.32705241,47069.0,47067.0,0.73577392]
[1641204409471,0.14033567,47071.0,47067.0,0.58277392]
[1641204409672,0.14033567,47071.0,47068.0,0.009794]
[1641204409873,0.14033567,47071.0,47069.0,0.58277392]
[1641204410673,0.14033567,47071.0,47069.0,1.54783129]
[1641204411474,0.14033567,47071.0,47069.0,0.58277392]
[1641204411675,0.14033567,47071.0,47070.0,0.35216952]
[1641204412782,0.14033567,47071.0,47069.0,0.50916952]
[1641204413179,0.14033567,47071.0,47069.0,0.35216952]
[1641204413880,0.14033567,47071.0,47069.0,0.50916952]
[1641204415081,0.14033567,47071.0,47070.0,0.35216952]
[1641204415883,1.20581675,47070.0,47068.0,0.36196352]
[1641204416282,1.20581675,47070.0,47068.0,0.35216952]
[1641204417083,1.20581675,47070.0,47069.0,0.35216952]
[1641204417985,1.20581675,47070.0,47069.0,0.52216952]
[1641204418584,1.20581675,47070.0,47069.0,0.17]
[1641204419386,1.20581675,47070.0,47068.0,0.35216952]
[1641204420087,1.20581675,47070.0,47068.0,0.52216952]
[1641204421089,1.34615242,47071.0,47069.0,0.35216952]
[1641204421789,1.34615242,47071.0,47068.0,0.35216952]
[1641204421790,1.20581675,47070.0,47068.0,0.35216952]
[1641204421989,1.20581675,47070.0,47069.0,0.17]
[1641204423393,1.20581675,47070.0,47068.0,0.35216952]
[1641204423591,1.20581675,47070.0,47069.0,0.35216952]
[1641204423792,1.34615242,47071.0,47069.0,0.35216952]
[1641204423990,1.70607333,47096.0,47070.0,1.4693749]
[1641204423991,1.8417,47083.0,47070.0,1.4693749]
[1641204424189,1.8417,47083.0,47078.0,0.18]
[1641204424389,0.14033567,47088.0,47078.0,0.18]
[1641204424589,0.14033567,47088.0,47079.0,1.118]
[1641204424789,0.14033567,47088.0,47081.0,0.18]
[1641204424991,0.14033567,47088.0,47081.0,1.298]
[1641204426092,0.14033567,47085.0,47081.0,1.46]
[1641204427290,0.14033567,47085.0,47081.0,1.298]
[1641204427992,0.14033567,47085.0,47081.0,1.28]
[1641204428597,0.14033567,47085.0,47081.0,1.63102975]
[1641204428793,0.14033567,47085.0,47082.0,2.67790485]
[1641204429192,0.14033567,47085.0,47082.0,2.49790485]
[1641204429795,0.14033567,47085.0,47082.0,2.8489346]
[1641204429995,0.14033567,47085.0,47082.0,3.0149346]
[1641204431297,0.14033567,47085.0,47082.0,2.8489346]
[1641204431797,0.14033567,47085.0,47082.0,2.67790485]
[1641204431997,0.14033567,47085.0,47082.0,2.84390485]
[1641204432399,0.14033567,47085.0,47082.0,2.66390485]
[1641204432798,0.14033567,47085.0,47083.0,0.35102975]
[1641204433998,0.14033567,47085.0,47083.0,0.51702975]
[1641204434201,0.02124822,47084.0,47083.0,0.28680182]
[1641204434398,0.08734822,47084.0,47083.0,0.28680182]
[1641204435299,1.53389411,47084.0,47083.0,0.166]
[1641204435498,1.53389411,47084.0,47074.0,1.28626527]
[1641204435499,1.53389411,47084.0,47074.0,0.58277392]